fUSD/lending_fUSD_20251225
["ID","MTS","AMOUNT","RATE_DAILY","PERIOD"]
[399789472,1766679041579,-125.80850998,0.0001587,2]
[399789473,1766679041592,-24.19149002,0.0001587,2]
[399789474,1766679041602,-297.95782192,0.00015871,2]
[399789475,1766679041612,-278.77144016,0.00015871,2]
[399789476,1766679041623,-161.31844232,0.00015871,2]
[399789477,1766679041634,-208.13382846,0.00015871,2]
[399789478,1766679041644,-194.3242755,0.00015871,2]
[399789479,1766679041654,-401.09949094,0.00015871,2]
[399789480,1766679041665,-150.0,0.00015882,2]
[399789481,1766679041675,-297.95782192,0.00015888,2]
[399789482,1766679041686,-278.77144016,0.00015888,2]
[399789483,1766679041696,-161.31844232,0.00015888,2]
[399789484,1766679041707,-208.13382846,0.00015888,2]
[399789485,1766679041718,-194.3242755,0.00015888,2]
[399789486,1766679041728,-401.09949094,0.00015888,2]
[399789487,1766679041738,-150.0,0.00015897,2]
[399789488,1766679041748,-150.0,0.00015903,2]
[399789489,1766679041758,-297.95782192,0.00015905,2]
[399789490,1766679041768,-278.77144016,0.00015905,2]
[399789491,1766679041779,-161.31844232,0.00015905,2]
[399789492,1766679041789,-208.13382846,0.00015905,2]
[399789493,1766679041799,-194.3242755,0.00015905,2]
[399789494,1766679041811,-401.09949094,0.00015905,2]
[399789495,1766679041820,-150.0,0.00015909,2]
[399789496,1766679041830,-150.0,0.00015917,2]
[399789497,1766679041840,-150.0,0.00015919,2]
[399789498,1766679041850,-297.95782192,0.00015923,2]
[399789499,1766679041859,-278.77144016,0.00015923,2]
[399789500,1766679041870,-161.31844232,0.00015923,2]
[399789501,1766679041881,-208.13382846,0.00015923,2]
[399789502,1766679041891,-194.3242755,0.00015923,2]
[399789503,1766679041901,-401.09949094,0.00015923,2]
[399789504,1766679041911,-150.0,0.00015925,2]
[399789505,1766679041922,-150.0,0.00015925,2]
[399789506,1766679041935,-150.0,0.00015929,2]
[399789507,1766679041947,-297.95782192,0.0001594,2]
[399789508,1766679041957,-278.77144016,0.0001594,2]
[399789509,1766679041970,-161.31844232,0.0001594,2]
[399789510,1766679041987,-208.13382846,0.0001594,2]
[399789511,1766679041998,-194.3242755,0.0001594,2]
[399789512,1766679042008,-401.09949094,0.0001594,2]
[399789513,1766679042018,-150.0,0.00015946,2]
[399789514,1766679042028,-150.0,0.00015951,2]
[399789515,1766679042038,-297.95782192,0.00015957,2]
[399789516,1766679042048,-278.77144016,0.00015957,2]
[399789517,1766679042060,-161.31844232,0.00015957,2]
[399789518,1766679042070,-208.13382846,0.00015957,2]
[399789519,1766679042079,-194.3242755,0.00015957,2]
[399789520,1766679042089,-401.09949094,0.00015957,2]
[399789521,1766679042099,-150.0,0.00015961,2]
[399789522,1766679042109,-150.0,0.00015967,2]
[399789523,1766679042119,-150.0,0.00015967,2]
[399789524,1766679042129,-297.95782192,0.00015974,2]
[399789525,1766679042139,-278.77144016,0.00015974,2]
[399789526,1766679042149,-51.92864958,0.00015974,2]
[399789527,1766679042161,-109.38979274,0.00015974,2]
[399789528,1766679042171,-208.13382846,0.00015974,2]
[399789530,1766679042181,-194.3242755,0.00015974,2]
[399789531,1766679042192,-401.09949094,0.00015974,2]
[399789532,1766679042202,-150.0,0.0001598,2]
[399789534,1766679042211,-150.0,0.00015988,2]
[399789535,1766679042222,-297.95782192,0.00015991,2]
[399789536,1766679042231,-278.77144016,0.00015991,2]
[399789537,1766679042242,-161.31844232,0.00015991,2]
[399789538,1766679042253,-208.13382846,0.00015991,2]
[399789539,1766679042262,-194.3242755,0.00015991,2]
[399789540,1766679042273,-401.09949094,0.00015991,2]
[399789541,1766679042283,-150.0,0.00015992,2]
[399789542,1766679042293,-150.0,0.00015993,2]
[399789543,1766679042304,-61.0961765,0.00015994,2]
[399789544,1766679042316,-532.3919509,0.00015994,2]
[399789545,1766679042325,-150.0,0.00015995,2]
[399789546,1766679042335,-297.95782192,0.00016008,2]
[399789547,1766679042345,-278.77144016,0.00016008,2]
[399789548,1766679042355,-161.31844232,0.00016008,2]
[399789549,1766679042369,-208.13382846,0.00016008,2]
[399789550,1766679042378,-194.3242755,0.00016008,2]
[399789551,1766679042390,-401.09949094,0.00016008,2]
[399789552,1766679042400,-150.0,0.0001601,2]
[399789553,1766679042411,-150.0,0.00016016,2]
[399789554,1766679042421,-5933.05057158,0.00016016,2]
[399789555,1766679042431,-506.90717822,0.00016024,2]
[399789556,1766679042444,-4300.09282178,0.00016024,2]
[399789557,1766679042454,-6534.0,0.00016024,2]
[399789558,1766679042464,-564.0,0.00016024,2]
[399789559,1766679042475,-150.0,0.00016025,2]
[399789560,1766679042485,-297.95782192,0.00016025,2]
[399789561,1766679042495,-278.77144016,0.00016025,2]
[399789562,1766679042504,-161.31844232,0.00016025,2]
[399789563,1766679042515,-208.13382846,0.00016025,2]
[399789564,1766679042526,-194.3242755,0.00016025,2]
[399789565,1766679042537,-401.09949094,0.00016025,2]
[399789566,1766679042547,-150.0,0.00016031,2]
[399789567,1766679042557,-150.0,0.00016033,2]
[399789568,1766679042567,-297.95782192,0.00016043,2]
[399789569,1766679042576,-278.77144016,0.00016043,2]
[399789571,1766679042586,-161.31844232,0.00016043,2]
[399789572,1766679042597,-150.0,0.00016043,2]
[399789573,1766679042607,-208.13382846,0.00016043,2]
[399789574,1766679042618,-194.3242755,0.00016043,2]
[399789575,1766679042628,-401.09949094,0.00016043,2]
[399789576,1766679042638,-162.62,0.00016044,2]
[399789577,1766679042648,-150.0,0.00016052,2]
[399789578,1766679042658,-150.0,0.00016057,2]
[399789579,1766679042668,-297.95782192,0.0001606,2]
[399789580,1766679042679,-278.77144016,0.0001606,2]
[399789581,1766679042689,-161.31844232,0.0001606,2]
[399789582,1766679042699,-208.13382846,0.0001606,2]
[399789583,1766679042710,-194.3242755,0.0001606,2]
[399789584,1766679042719,-401.09949094,0.0001606,2]
[399789585,1766679042730,-150.0,0.00016064,2]
[399789586,1766679042739,-150.0,0.00016073,2]
[399789587,1766679042749,-150.0,0.00016075,2]
[399789588,1766679042759,-297.95782192,0.00016077,2]
[399789589,1766679042769,-278.77144016,0.00016077,2]
[399789590,1766679042780,-161.31844232,0.00016077,2]
[399789591,1766679042791,-208.13382846,0.00016077,2]
[399789592,1766679042801,-194.3242755,0.00016077,2]
[399789593,1766679042811,-401.09949094,0.00016077,2]
[399789594,1766679042821,-150.0,0.00016089,2]
[399789597,1766679042888,-297.95782192,0.00016094,2]
[399789599,1766679042898,-278.77144016,0.00016094,2]
[399789600,1766679042908,-161.31844232,0.00016094,2]
[399789602,1766679042921,-208.13382846,0.00016094,2]
[399789604,1766679042933,-194.3242755,0.00016094,2]
[399789606,1766679042943,-401.09949094,0.00016094,2]
[399789608,1766679042952,-150.0,0.00016095,2]
[399789610,1766679042962,-150.0,0.00016106,2]
[399789612,1766679042971,-297.95782192,0.00016111,2]
[399789614,1766679042980,-278.77144016,0.00016111,2]
[399789616,1766679042989,-161.31844232,0.00016111,2]
[399789618,1766679042999,-208.13382846,0.00016111,2]
[399789620,1766679043008,-194.3242755,0.00016111,2]
[399789622,1766679043018,-401.09949094,0.00016111,2]
[399789624,1766679043027,-150.0,0.00016113,2]
[399789625,1766679043036,-1211.00484469,0.00016114,2]
[399789629,1766679043048,-1368.08453927,0.00016114,2]
[399789631,1766679043066,-3353.96118758,0.00016114,2]
[399789633,1766679043076,-150.0,0.00016116,2]
[399789635,1766679043086,-6699.7,0.00016116,2]
[399789637,1766679043095,-150.0,0.00016116,2]
[399789639,1766679043105,-150.0,0.00016121,2]
[399789641,1766679043113,-199.73671242,0.00016123,2]
[399789643,1766679043130,-393.75141493,0.00016123,2]
[399789645,1766679043140,-297.95782192,0.00016128,2]
[399789647,1766679043150,-278.77144016,0.00016128,2]
[399789649,1766679043159,-161.31844232,0.00016128,2]
[399789651,1766679043169,-208.13382846,0.00016128,2]
[399789653,1766679043179,-194.3242755,0.00016128,2]
[399789655,1766679043190,-401.09949094,0.00016128,2]
[399789657,1766679043199,-150.0,0.00016137,2]
[399789659,1766679043210,-150.0,0.00016137,2]
[399789661,1766679043220,-150.0,0.00016137,2]
[399789663,1766679043229,-150.0,0.00016137,2]
[399789664,1766679043239,-150.0,0.00016137,2]
[399789666,1766679043248,-297.95782192,0.00016146,2]
[399789668,1766679043259,-278.77144016,0.00016146,2]
[399789670,1766679043269,-161.31844232,0.00016146,2]
[399789672,1766679043280,-208.13382846,0.00016146,2]
[399789674,1766679043289,-194.3242755,0.00016146,2]
[399789676,1766679043299,-401.09949094,0.00016146,2]
[399789677,1766679043310,-200.0,0.00016149,2]
[399789679,1766679043319,-207.4,0.00016149,2]
[399789681,1766679043329,-215.0738,0.00016149,2]
[399789683,1766679043339,-223.0315306,0.00016149,2]
[399789685,1766679043349,-231.28369723,0.00016149,2]
[399789687,1766679043359,-123.0781212,0.00016149,2]
[399789689,1766679043374,-116.76307283,0.00016149,2]
[399789691,1766679043383,-248.71531821,0.00016149,2]
[399789693,1766679043393,-257.91778498,0.00016149,2]
[399789695,1766679043402,-267.46074303,0.00016149,2]
[399789697,1766679043412,-277.35679052,0.00016149,2]
[399789698,1766679043423,-500.0,0.00016149,2]
[399789700,1766679043433,-468.52172957,0.00016149,2]
[399789702,1766679043448,-500.0,0.00016149,2]
[399789704,1766679043458,-3318.06456086,0.00016149,2]
[399789706,1766679043469,-3610.92924073,0.00016149,2]
[399789708,1766679043479,-500.0,0.00016149,2]
[399789710,1766679043489,-500.0,0.00016149,2]
[399789712,1766679043499,-500.0,0.00016149,2]
[399789714,1766679043508,-500.0,0.00016149,2]
[399789716,1766679043518,-500.0,0.00016149,2]
[399789718,1766679043527,-500.0,0.00016149,2]
[399789720,1766679043537,-500.0,0.00016149,2]
[399789721,1766679043546,-500.0,0.00016149,2]
[399789723,1766679043555,-500.0,0.00016149,2]
[399789725,1766679043566,-500.0,0.00016149,2]
[399789728,1766679043575,-574.12855637,0.00016149,2]
[399789729,1766679043585,-500.0,0.00016149,2]
[399789731,1766679043595,-500.0,0.00016149,2]
[399789733,1766679043604,-500.0,0.00016149,2]
[399789735,1766679043614,-500.0,0.00016149,2]
[399789737,1766679043624,-500.0,0.00016149,2]
[399789739,1766679043634,-500.0,0.00016149,2]
[399789741,1766679043643,-500.0,0.00016149,2]
[399789743,1766679043653,-500.0,0.00016149,2]
[399789745,1766679043663,-500.0,0.00016149,2]
[399789747,1766679043672,-500.0,0.00016149,2]
[399789748,1766679043681,-500.0,0.00016149,2]
[399789750,1766679043691,-283.18901002,0.00016149,2]
[399789752,1766679043700,-500.0,0.00016149,2]
[399789754,1766679043709,-1500.0,0.00016149,2]
[399789756,1766679043719,-620.0,0.00016149,2]
[399789758,1766679043728,-1000.0,0.00016149,2]
[399789760,1766679043738,-151.0,0.00016149,2]
[399789761,1766679043748,-250.0,0.00016149,2]
[399789763,1766679043757,-250.0,0.00016149,2]
[399789765,1766679043767,-250.0,0.00016149,2]
[399789767,1766679043777,-250.0,0.00016149,2]
[399789769,1766679043786,-250.0,0.00016149,2]
[399789771,1766679043795,-250.0,0.00016149,2]
[399789773,1766679043805,-250.0,0.00016149,2]
[399789775,1766679043815,-250.0,0.00016149,2]
[399789776,1766679043824,-250.0,0.00016149,2]
[399789778,1766679043834,-250.0,0.00016149,2]
[399789779,1766679043843,-250.0,0.00016149,2]
[399789780,1766679043853,-250.0,0.00016149,2]
[399789781,1766679043862,-250.0,0.00016149,2]
[399789782,1766679043872,-250.0,0.00016149,2]
[399789783,1766679043882,-250.0,0.00016149,2]
[399789784,1766679043892,-322.6107,0.00016149,2]
[399789785,1766679043901,-250.0,0.00016149,2]
[399789786,1766679043911,-250.0,0.00016149,2]
[399789787,1766679043920,-250.0,0.00016149,2]
[399789788,1766679043929,-250.0,0.00016149,2]
[399789789,1766679043938,-250.0,0.00016149,2]
[399789790,1766679043948,-250.0,0.00016149,2]
[399789791,1766679043957,-250.0,0.00016149,2]
[399789792,1766679043967,-250.0,0.00016149,2]
[399789793,1766679043976,-250.0,0.00016149,2]
[399789794,1766679043986,-250.0,0.00016149,2]
[399789795,1766679043995,-250.0,0.00016149,2]
[399789796,1766679044005,-1500.0,0.00016149,2]
[399789797,1766679044014,-250.0,0.00016149,2]
[399789798,1766679044023,-1500.0,0.00016149,2]
[399789799,1766679044033,-1500.0,0.00016149,2]
[399789800,1766679044044,-1500.0,0.00016149,2]
[399789801,1766679044053,-1500.0,0.00016149,2]
[399789802,1766679044063,-1500.0,0.00016149,2]
[399789803,1766679044072,-1500.0,0.00016149,2]
[399789804,1766679044082,-1500.0,0.00016149,2]
[399789805,1766679044092,-1500.0,0.00016149,2]
[399789806,1766679044102,-1500.0,0.00016149,2]
[399789807,1766679044112,-1500.0,0.00016149,2]
[399789808,1766679044122,-578.20924308,0.00016149,2]
[399789809,1766679044132,-150.0,0.00016153,2]
[399789810,1766679044142,-150.0,0.00016158,2]
[399789811,1766679044152,-150.0,0.00016158,2]
[399789812,1766679044162,-150.0,0.00016161,2]
[399789813,1766679044172,-297.95782192,0.00016163,2]
[399789814,1766679044181,-278.77144016,0.00016163,2]
[399789815,1766679044191,-161.31844232,0.00016163,2]
[399789816,1766679044202,-208.13382846,0.00016163,2]
[399789817,1766679044212,-194.3242755,0.00016163,2]
[399789818,1766679044222,-401.09949094,0.00016163,2]
[399789819,1766679044232,-500.0,0.00016164,2]
[399789820,1766679044241,-150.0,0.00016168,2]
[399789821,1766679044251,-150.0,0.00016179,2]
[399789822,1766679044261,-297.95782192,0.0001618,2]
[399789823,1766679044270,-278.77144016,0.0001618,2]
[399789824,1766679044280,-161.31844232,0.0001618,2]
[399789825,1766679044290,-208.13382846,0.0001618,2]
[399789826,1766679044300,-194.3242755,0.0001618,2]
[399789827,1766679044310,-401.09949094,0.0001618,2]
[399789828,1766679044321,-500.0,0.00016183,2]
[399789829,1766679044330,-500.0,0.00016183,2]
[399789830,1766679044341,-500.0,0.00016183,2]
[399789831,1766679044351,-500.0,0.00016183,2]
[399789832,1766679044364,-500.0,0.00016183,2]
[399789833,1766679044373,-500.0,0.00016183,2]
[399789834,1766679044383,-500.0,0.00016183,2]
[399789835,1766679044393,-500.0,0.00016183,2]
[399789836,1766679044403,-500.0,0.00016183,2]
[399789837,1766679044412,-349.16265713,0.00016183,2]
[399789838,1766679044422,-515.54072242,0.00016183,2]
[399789839,1766679044432,-500.0,0.00016183,2]
[399789840,1766679044442,-648.46173605,0.00016183,2]
[399789841,1766679044452,-500.0,0.00016183,2]
[399789842,1766679044462,-160.176,0.00016183,2]
[399789843,1766679044472,-500.0,0.00016183,2]
[399789844,1766679044482,-500.0,0.00016183,2]
[399789845,1766679044492,-500.0,0.00016183,2]
[399789846,1766679044502,-500.0,0.00016183,2]
[399789847,1766679044513,-500.0,0.00016183,2]
[399789848,1766679044522,-500.0,0.00016183,2]
[399789849,1766679044532,-500.0,0.00016183,2]
[399789850,1766679044542,-500.0,0.00016183,2]
[399789851,1766679044552,-500.0,0.00016183,2]
[399789852,1766679044562,-500.66742167,0.00016183,2]
[399789853,1766679044571,-500.0,0.00016183,2]
[399789854,1766679044581,-500.0,0.00016183,2]
[399789855,1766679044591,-500.0,0.00016183,2]
[399789856,1766679044601,-500.0,0.00016183,2]
[399789857,1766679044610,-500.0,0.00016183,2]
[399789858,1766679044620,-500.0,0.00016183,2]
[399789859,1766679044629,-164.92711325,0.00016183,2]
[399789860,1766679044640,-168.21782,0.00016183,2]
[399789861,1766679044650,-500.0,0.00016183,2]
[399789862,1766679044660,-500.0,0.00016183,2]
[399789863,1766679044670,-500.0,0.00016183,2]
[399789864,1766679044680,-500.0,0.00016183,2]
[399789865,1766679044689,-500.0,0.00016183,2]
[399789866,1766679044699,-150.0,0.00016185,2]
[399789867,1766679044708,-297.95782192,0.00016197,2]
[399789868,1766679044718,-278.77144016,0.00016197,2]
[399789869,1766679044727,-161.31844232,0.00016197,2]
[399789870,1766679044738,-208.13382846,0.00016197,2]
[399789871,1766679044747,-194.3242755,0.00016197,2]
[399789872,1766679044758,-401.09949094,0.00016197,2]
[399789873,1766679044769,-150.0,0.00016199,2]
[399789874,1766679044778,-1000.0,0.000162,2]
[399789875,1766679044788,-150.0,0.00016201,2]
[399789876,1766679044799,-150.0,0.0001621,2]
[399789877,1766679044808,-5933.05057154,0.00016212,2]
[399789878,1766679044819,-297.95782192,0.00016214,2]
[399789879,1766679044830,-278.77144016,0.00016214,2]
[399789880,1766679044840,-161.31844232,0.00016214,2]
[399789881,1766679044850,-208.13382846,0.00016214,2]
[399789882,1766679044860,-194.3242755,0.00016214,2]
[399789883,1766679044870,-401.09949094,0.00016214,2]
[399789884,1766679044880,-150.0,0.00016217,2]
[399789885,1766679044889,-150.0,0.00016222,2]
[399789886,1766679044899,-297.95782192,0.00016231,2]
[399789887,1766679044909,-278.77144016,0.00016231,2]
[399789888,1766679044919,-161.31844232,0.00016231,2]
[399789889,1766679044929,-150.0,0.00016231,2]
[399789890,1766679044939,-208.13382846,0.00016231,2]
[399789891,1766679044949,-194.3242755,0.00016231,2]
[399789892,1766679044960,-401.09949094,0.00016231,2]
[399789893,1766679044970,-150.0,0.00016241,2]
[399789894,1766679044980,-150.0,0.00016243,2]
[399789895,1766679044990,-297.95782192,0.00016249,2]
[399789896,1766679045000,-278.77144016,0.00016249,2]
[399789897,1766679045010,-161.31844232,0.00016249,2]
[399789898,1766679045021,-208.13382846,0.00016249,2]
[399789899,1766679045031,-194.3242755,0.00016249,2]
[399789900,1766679045041,-401.09949094,0.00016249,2]
[399789901,1766679045051,-150.0,0.00016249,2]
[399789902,1766679045060,-593.48812735,0.00016253,2]
[399789903,1766679045071,-150.0,0.00016258,2]
[399789904,1766679045081,-150.0,0.00016264,2]
[399789905,1766679045091,-297.95782192,0.00016266,2]
[399789906,1766679045102,-278.77144016,0.00016266,2]
[399789907,1766679045112,-161.31844232,0.00016266,2]
[399789908,1766679045122,-208.13382846,0.00016266,2]
[399789909,1766679045131,-194.3242755,0.00016266,2]
[399789910,1766679045141,-401.09949094,0.00016266,2]
[399789911,1766679045151,-41325.20904142,0.00016276,2]
[399789912,1766679045162,-583.07830005,0.00016276,2]
[399789913,1766679045172,-150.0,0.00016279,2]
[399789914,1766679045183,-150.0,0.00016281,2]
[399789915,1766679045193,-150.0,0.00016282,2]
[399789916,1766679045203,-297.95782192,0.00016283,2]
[399789917,1766679045213,-278.77144016,0.00016283,2]
[399789918,1766679045223,-161.31844232,0.00016283,2]
[399789919,1766679045233,-208.13382846,0.00016283,2]
[399789920,1766679045243,-194.3242755,0.00016283,2]
[399789921,1766679045252,-401.09949094,0.00016283,2]
[399789923,1766679045263,-150.0,0.00016286,2]
[399789925,1766679045273,-150.0,0.00016294,2]
[399789927,1766679045283,-297.95782192,0.000163,2]
[399789929,1766679045293,-278.77144016,0.000163,2]
[399789930,1766679045303,-161.31844232,0.000163,2]
[399789931,1766679045313,-208.13382846,0.000163,2]
[399789932,1766679045323,-194.3242755,0.000163,2]
[399789933,1766679045333,-401.09949094,0.000163,2]
[399789934,1766679045343,-150.0,0.00016307,2]
[399789935,1766679045353,-150.0,0.00016307,2]
[399789936,1766679045366,-5933.05057154,0.00016311,2]
[399789937,1766679045376,-150.0,0.00016313,2]
[399789938,1766679045386,-297.95782192,0.00016317,2]
[399789939,1766679045397,-278.77144016,0.00016317,2]
[399789940,1766679045408,-161.31844232,0.00016317,2]
[399789941,1766679045418,-208.13382846,0.00016317,2]
[399789942,1766679045428,-194.3242755,0.00016317,2]
[399789943,1766679045438,-401.09949094,0.00016317,2]
[399789944,1766679045449,-150.0,0.00016323,2]
[399789945,1766679045458,-150.0,0.00016328,2]
[399789946,1766679045468,-297.95782192,0.00016334,2]
[399789947,1766679045479,-278.77144016,0.00016334,2]
[399789948,1766679045489,-161.31844232,0.00016334,2]
[399789949,1766679045499,-208.13382846,0.00016334,2]
[399789950,1766679045509,-194.3242755,0.00016334,2]
[399789951,1766679045518,-401.09949094,0.00016334,2]
[399789952,1766679045529,-150.0,0.00016345,2]
[399789953,1766679045539,-150.0,0.00016349,2]
[399789954,1766679045549,-150.0,0.00016349,2]
[399789955,1766679045559,-297.95782192,0.00016351,2]
[399789956,1766679045570,-278.77144016,0.00016351,2]
[399789957,1766679045580,-161.31844232,0.00016351,2]
[399789958,1766679045590,-208.13382846,0.00016351,2]
[399789959,1766679045601,-194.3242755,0.00016351,2]
[399789960,1766679045610,-401.09949094,0.00016351,2]
[399789961,1766679045620,-150.0,0.00016355,2]
[399789962,1766679045631,-150.0,0.00016357,2]
[399789963,1766679045642,-150.0,0.00016365,2]
[399789964,1766679045652,-297.95782192,0.00016369,2]
[399789965,1766679045662,-278.77144016,0.00016369,2]
[399789966,1766679045673,-161.31844232,0.00016369,2]
[399789967,1766679045684,-208.13382846,0.00016369,2]
[399789968,1766679045695,-194.3242755,0.00016369,2]
[399789969,1766679045705,-401.09949094,0.00016369,2]
[399789970,1766679045716,-150.0,0.00016371,2]
[399789971,1766679045726,-150.0,0.00016377,2]
[399789972,1766679045736,-593.48812735,0.00016382,2]
[399789973,1766679045746,-297.95782192,0.00016386,2]
[399789974,1766679045756,-278.77144016,0.00016386,2]
[399789975,1766679045766,-161.31844232,0.00016386,2]
[399789976,1766679045776,-208.13382846,0.00016386,2]
[399789977,1766679045786,-194.3242755,0.00016386,2]
[399789978,1766679045797,-401.09949094,0.00016386,2]
[399789979,1766679045806,-150.0,0.00016392,2]
[399789980,1766679045816,-228.0,0.000164,2]
[399789981,1766679045826,-319.0,0.000164,2]
[399789982,1766679045836,-182.0,0.000164,2]
[399789983,1766679045846,-184.24951816,0.000164,2]
[399789984,1766679045858,-297.95782192,0.00016403,2]
[399789985,1766679045867,-278.77144016,0.00016403,2]
[399789986,1766679045877,-161.31844232,0.00016403,2]
[399789987,1766679045887,-208.13382846,0.00016403,2]
[399789988,1766679045897,-194.3242755,0.00016403,2]
[399789989,1766679045907,-401.09949094,0.00016403,2]
[399789990,1766679045919,-150.0,0.00016404,2]
[399789991,1766679045929,-150.0,0.00016406,2]
[399789992,1766679045943,-5933.05057154,0.00016409,2]
[399789994,1766679045952,-150.0,0.00016409,2]
[399789996,1766679045962,-150.0,0.00016413,2]
[399789997,1766679045972,-297.95782192,0.0001642,2]
[399789999,1766679045982,-278.77144016,0.0001642,2]
[399790001,1766679045992,-161.31844232,0.0001642,2]
[399790003,1766679046002,-150.0,0.0001642,2]
[399790005,1766679046012,-208.13382846,0.0001642,2]
[399790007,1766679046022,-194.3242755,0.0001642,2]
[399790009,1766679046031,-401.09949094,0.0001642,2]
[399790011,1766679046042,-150.0,0.0001642,2]
[399790013,1766679046052,-150.0,0.0001642,2]
[399790015,1766679046062,-150.0,0.00016434,2]
[399790017,1766679046073,-514.26394542,0.00016437,2]
[399790019,1766679046082,-500.0,0.00016437,2]
[399790021,1766679046091,-297.95782192,0.00016437,2]
[399790023,1766679046101,-278.77144016,0.00016437,2]
[399790025,1766679046111,-161.31844232,0.00016437,2]
[399790026,1766679046120,-208.13382846,0.00016437,2]
[399790028,1766679046130,-194.3242755,0.00016437,2]
[399790030,1766679046140,-401.09949094,0.00016437,2]
[399790033,1766679046153,-500.0,0.00016438,2]
[399790035,1766679046163,-500.0,0.00016438,2]
[399790037,1766679046173,-500.0,0.00016438,2]
[399790039,1766679046182,-500.0,0.00016438,2]
[399790040,1766679046191,-500.0,0.00016438,2]
[399790042,1766679046201,-500.0,0.00016438,2]
[399790044,1766679046211,-500.0,0.00016438,2]
[399790047,1766679046221,-500.0,0.00016438,2]
[399790048,1766679046231,-500.0,0.00016438,2]
[399790050,1766679046241,-500.0,0.00016438,2]
[399790052,1766679046250,-500.0,0.00016438,2]
[399790054,1766679046260,-500.0,0.00016438,2]
[399790056,1766679046271,-500.0,0.00016438,2]
[399790057,1766679046280,-500.0,0.00016438,2]
[399790058,1766679046290,-500.0,0.00016438,2]
[399790059,1766679046301,-500.0,0.00016438,2]
[399790060,1766679046311,-500.0,0.00016438,2]
[399790061,1766679046321,-500.0,0.00016438,2]
[399790062,1766679046331,-500.0,0.00016438,2]
[399790064,1766679046340,-500.0,0.00016438,2]
[399790067,1766679046354,-500.0,0.00016438,2]
[399790069,1766679046367,-500.0,0.00016438,2]
[399790070,1766679046378,-500.0,0.00016438,2]
[399790072,1766679046388,-500.0,0.00016438,2]
[399790074,1766679046398,-500.0,0.00016438,2]
[399790076,1766679046410,-500.0,0.00016438,2]
[399790078,1766679046419,-636.63076666,0.00016438,2]
[399790080,1766679046429,-636.63076666,0.00016438,2]
[399790082,1766679046440,-636.63076666,0.00016438,2]
[399790084,1766679046449,-636.63076666,0.00016438,2]
[399790086,1766679046462,-636.63076666,0.00016438,2]
[399790088,1766679046471,-636.63076666,0.00016438,2]
[399790090,1766679046482,-636.63076666,0.00016438,2]
[399790092,1766679046492,-636.63076666,0.00016438,2]
[399790094,1766679046501,-636.63076666,0.00016438,2]
[399790095,1766679046511,-636.63076666,0.00016438,2]
[399790096,1766679046522,-636.63076666,0.00016438,2]
[399790097,1766679046532,-636.63076666,0.00016438,2]
[399790098,1766679046542,-636.63076666,0.00016438,2]
[399790099,1766679046552,-636.63076666,0.00016438,2]
[399790100,1766679046563,-636.63076666,0.00016438,2]
[399790101,1766679046572,-636.63076666,0.00016438,2]
[399790102,1766679046584,-636.63076666,0.00016438,2]
[399790103,1766679046593,-636.63076666,0.00016438,2]
[399790104,1766679046602,-636.63076666,0.00016438,2]
[399790105,1766679046612,-636.63076666,0.00016438,2]
[399790106,1766679046622,-636.63076666,0.00016438,2]
[399790107,1766679046632,-636.63076666,0.00016438,2]
[399790108,1766679046642,-636.63076666,0.00016438,2]
[399790109,1766679046652,-636.63076666,0.00016438,2]
[399790110,1766679046662,-636.63076666,0.00016438,2]
[399790111,1766679046671,-636.63076666,0.00016438,2]
[399790112,1766679046681,-636.63076666,0.00016438,2]
[399790113,1766679046690,-636.63076666,0.00016438,2]
[399790114,1766679046700,-636.63076666,0.00016438,2]